Cogmind - Beta 13 @@@ ROGUE MODE // 2024.06.06 @ 19:14:36 Player: Johge Result: Destroyed by H-66 Slayer with Heavy Assault Rifle Performance ------------- Evolutions (4) 2000 Regions Visited (7) 1400 Robots Destroyed (96) 480 Value Destroyed (3092) 3092 Prototype IDs (4) 80 Alien Tech Used (0) 0 Bonus (43) 43 TOTAL SCORE: 7095 Bonus ------- High Alert Combat Kills 43 Cogmind --------- Core Integrity 0/850 Matter 95/550 Energy 100/100 System Corruption 10% Temperature Cool (0) Movement Core (100) Ox1 Location -6/Factory Parts ------- > --- POWER (2) -------- (None) > --- PROPULSION (4) --- (None) > --- UTILITY (6) ------ Matter Compressor Improved Signal Interpreter > --- WEAPON (3) ------- (None) > --- INVENTORY (5) ---- Huge Storage Unit Recalibrator Peak State ------------ > --- POWER ------------ Micro Nuclear Core > --- PROPULSION ------- Improved Medium Treads Armored Huge Wheel > --- UTILITY ---------- Advanced Heat Sink Large Storage Unit Improved Signal Interpreter Advanced Targeting Computer Hacking Suite Hacking Suite > --- WEAPON ----------- Heavy Machine Gun Proton Missile Launcher Improved Datajack > --- INVENTORY -------- Improved Ion Engine Light Nuclear Core Huge Storage Unit Matter Compressor Recalibrator Grenade Launcher Heavy Missile Launcher [Rating: 49] Favorites ----------- Power Backup Power VII Engine Improved Ion Engine Power Core Backup Power VII Propulsion Light Treads Treads Light Treads Leg Flexi-carbon Leg Wheel Armored Huge Wheel Utility Large Storage Unit Device ECM Suite Storage Large Storage Unit Processor Advanced Targeting Computer Hackware Hacking Suite Protection Light Armor Plating Weapon Heavy Particle Gun Energy Gun Heavy Particle Gun Ballistic Gun Improved Assault Rifle Ballistic Cannon Flak Cannon Launcher Proton Missile Launcher Special Melee Weapon Improved Datajack Build | -11 -10 -9 -8 -7 -7 -7 -6 ------- Run | Yrd Mat Mat Mat Fac Low Low Fac Slots Evolved 8 | . . 2 2 2 . . 2 Power 1 | . . . 1 . . . . Propulsion 2 | . . 2 . . . . . Utility 4 | . . . 1 2 . . 1 Weapon 1 | . . . . . . . 1 Parts Attached 87 | 7 3 18 8 14 13 . 24 Power 19 | 1 1 3 3 2 4 . 5 Engine 12 | 1 1 3 2 2 1 . 2 Core 7 | . . . 1 . 3 . 3 Reactor . | . . . . . . . . Propulsion 22 | 2 . 7 2 3 3 . 5 Treads 19 | 2 . 7 2 3 3 . 2 Leg 2 | . . . . . . . 2 Wheel 1 | . . . . . . . 1 Hover . | . . . . . . . . Flight . | . . . . . . . . Utility 21 | 1 2 1 2 6 2 . 7 Device 10 | . 1 1 1 3 . . 4 Storage 4 | 1 1 . . . . . 2 Processor 3 | . . . . 2 1 . . Hackware 2 | . . . . 1 . . 1 Protection 2 | . . . 1 . 1 . . Artifact . | . . . . . . . . Weapon 25 | 3 . 7 1 3 4 . 7 Energy Gun 3 | . . 1 . 1 1 . . Energy Cannon . | . . . . . . . . Ballistic Gun 13 | 3 . 5 1 1 1 . 2 Ballistic Cannon 4 | . . 1 . 1 2 . . Launcher 4 | . . . . . . . 4 Special Weapon . | . . . . . . . . Impact Weapon . | . . . . . . . . Slashing Weapon . | . . . . . . . . Piercing Weapon . | . . . . . . . . Special Melee Weapon 1 | . . . . . . . 1 Unidentified Prototypes 4 | . . 2 . 1 . . 1 Parts Lost 56 | . . 2 5 7 15 1 26 Power 12 | . . . 1 1 3 . 7 Propulsion 16 | . . 1 2 2 7 . 4 Utility 12 | . . . 1 3 1 1 6 Weapon 16 | . . 1 1 1 4 . 9 Highest Loss Streak 14 | . . 1 2 4 8 1 14 To Critical Strikes 1 | . . . . . . 1 . Average Slot Usage (%) 78 | . 94 99 98 97 67 64 62 Engine 6 | . 14 11 12 13 3 . . Core 5 | . . . 5 1 8 15 6 Treads 16 | . 28 43 35 28 4 . 6 Device 9 | . 8 11 11 16 9 2 3 Storage 7 | . 14 11 9 7 7 7 4 Processor 6 | . . . . 7 9 15 11 Hackware 4 | . . . . . 7 7 9 Protection 1 | . . . 5 3 . . . Energy Gun 3 | . . . . . 6 7 1 Ballistic Gun 8 | . 28 18 17 10 . . 6 Ballistic Cannon 4 | . . 3 . 3 6 7 . Naked Turns . | . . . . . . . . Heaviest Build 53 | 13 29 35 45 53 53 49 47 Greatest Support 91 | 40 40 89 91 91 86 3 50 Greatest Overweight (x) 16 | 3 . . . 1 16 16 15 Average Overweight (x) 1 | . . . . . 5 15 . Largest Inventory Capacity 15 | 8 15 15 15 15 15 15 15 Average Capacity 13 | 7 14 15 15 15 15 15 12 Most Carried 15 | 5 13 15 15 15 14 11 13 Average Carried 10 | 3 9 14 13 13 10 11 8 Final Capacity 15 | 8 15 15 15 15 15 15 5 Final Carried 15 | 4 13 15 14 14 11 11 2 Class Distribution -------------------- 79% | Mutant 14% | Scavenger-Mutant 5% | Hacker-Mutant Dominant Class ---------------- Mutant | -10/Materials Mutant | -9/Materials Mutant | -8/Materials Mutant | -7/Factory Mutant | -7/Lower Caves Mutant | -7/Lower Caves Hacker-Mutant | -6/Factory Resources | -11 -10 -9 -8 -7 -7 -7 -6 ----------- Run | Yrd Mat Mat Mat Fac Low Low Fac Matter Collected 2558 | 448 171 618 325 291 379 12 314 Remotely . | . . . . . . . . Salvage Created 3324 | 311 293 1122 474 252 341 44 487 Parts 207 | 36 19 63 27 18 14 . 30 Haulers Intercepted 4 | . 1 2 1 . . . . Recyclers Shooed 4 | . . 3 . . . . 1 Parts Field Recycled . | . . . . . . . . Retrieved Matter . | . . . . . . . . Parts Self-Destructed 14 | . . . . . 14 . . Prevented . | . . . . . . . . Kills | -11 -10 -9 -8 -7 -7 -7 -6 ------- Run | Yrd Mat Mat Mat Fac Low Low Fac Combat Hostiles Destroyed 65 | . 6 20 9 8 11 1 10 Guns 48 | . 6 17 9 5 4 . 7 Cannons 14 | . . 3 . 3 7 1 . AOE 3 | . . . . . . . 3 Classes Destroyed 16 | 3 3 2 2 3 2 . 1 Worker 4 | 4 . . . . . . . Builder 1 | . . . . . . . 1 Tunneler 9 | 8 1 . . . . . . Hauler 4 | . 1 2 1 . . . . Recycler 3 | 1 1 1 . . . . . Mechanic 1 | . . . . 1 . . . Operator 4 | . . . 1 1 . . 2 Watcher 5 | . . 3 1 . . . 1 Swarmer 14 | . 3 . 3 2 6 . . Grunt 31 | . 3 14 3 3 4 . 4 Brawler 1 | . . . 1 . . . . Sentry 9 | . . 6 2 . . . 1 Hunter 5 | . . . . 2 . 1 2 Programmer 4 | . . . . 1 . . 3 Behemoth 1 | . . . . . 1 . . Samaritan 1 | . . . . . 1 . . Best Kill Streak 9 | 3 2 9 3 3 3 1 4 Combat Bots Only 7 | . 2 7 3 3 3 1 3 Max Kills in Single Turn 3 | 1 1 1 2 1 1 1 3 Gunslinging . | . . . . . . . . Exploded 2 | . . . . . . . 2 Melee . | . . . . . . . . Uniques/NPCs Destroyed . | . . . . . . . . Combat | -11 -10 -9 -8 -7 -7 -7 -6 -------- Run | Yrd Mat Mat Mat Fac Low Low Fac Hostile Shots Fired 771 | . 55 109 72 101 103 8 323 Missed 208 | . 10 28 15 21 30 3 101 Damage Taken 7913 | . 410 1087 810 1152 1541 81 2832 Core 1417 | . 58 160 50 111 146 39 853 Absorbed by Shields . | . . . . . . . . Core Remaining (%) 76 | 100 76 60 90 . . 57 . Volleys Fired 307 | 32 42 72 48 26 38 2 47 Largest 2 | 2 2 2 2 2 2 2 2 Hottest 99 | 40 40 58 46 78 99 99 83 Shots Fired 597 | 64 84 143 96 50 73 4 83 Gun 502 | 64 84 112 96 34 37 2 73 Cannon 85 | . . 31 . 16 36 2 . Launcher 10 | . . . . . . . 10 Special . | . . . . . . . . Kinetic 547 | 64 84 143 96 46 52 2 60 Thermal 40 | . . . . 4 21 2 13 Explosive 4 | . . . . . . . 4 Electromagnetic 6 | . . . . . . . 6 Robot Hit Streak 19 | 7 7 14 13 14 19 9 12 Robot Miss Streak 8 | 3 4 4 7 5 6 1 8 Penetration Max . | . . . . . . . . Secondary Targets 4 | . . 1 2 1 . . . Max Gunslinging Chain 1 | . . 1 1 1 . . . Shots Hit Robots 419 | 38 40 95 68 44 64 4 66 Core Hits 258 | 15 18 40 22 44 49 4 66 Critical Kills 1 | . . 1 . . . . . Critical Parts Destroyed 1 | . 1 . . . . . . Critical Strikes 7 | . 1 2 . 2 2 . . Burn 3 | . . . . 1 2 . . Destroy 2 | . 1 1 . . . . . Blast 2 | . . 1 . 1 . . . Melee Attacks 3 | . . . . . . . 3 Impact . | . . . . . . . . Slashing . | . . . . . . . . Piercing . | . . . . . . . . Sneak Attacks . | . . . . . . . . Combat Hostiles . | . . . . . . . . Follow-up Attacks . | . . . . . . . . Damage Inflicted 8054 | 416 461 1396 1052 957 1437 62 2273 Guns 5592 | 416 461 1116 1035 676 661 36 1191 Cannons 1338 | . . 260 . 276 776 26 . Explosions 1053 | . . . . . . . 1053 Melee . | . . . . . . . . Ramming 71 | . . 20 17 5 . . 29 Kinetic 6312 | 416 461 1376 1035 886 1094 26 1018 Thermal 618 | . . . . 66 343 36 173 Explosive 753 | . . . . . . . 753 Electromagnetic 300 | . . . . . . . 300 Impact . | . . . . . . . . Slashing . | . . . . . . . . Piercing . | . . . . . . . . Highest Corruption 10 | . . . . 4 . . 10 Average Corruption 5 | . . . . 3 . . 6 Corruption Purged 5 | . . . . 4 . . 1 Corruption Blocked . | . . . . . . . . Effects 33 | . . . . 4 . . 29 Message Errors 9 | . . . . 1 . . 8 Matter Fused 8 | . . . . . . . 8 Heat Flow Errors 2 | . . . . 1 . . 1 Energy Discharges 7 | . . . . 1 . . 6 Parts Rejected 2 | . . . . 1 . . 1 Data Loss (minor) 1 | . . . . . . . 1 Data Loss (major) 1 | . . . . . . . 1 Misfires 2 | . . . . . . . 2 Alerts 1 | . . . . . . . 1 Overload Shots . | . . . . . . . . Overflow Damage 47 | . . 3 . 3 . . 41 Projectiles 3 | . . . . 3 . . . Explosions 41 | . . . . . . . 41 Melee 3 | . . 3 . . . . . Knockbacks 16 | . . 5 . 5 6 . . Impact . | . . . . . . . . Kinetic 15 | . . 5 . 5 5 . . Secondary 1 | . . . . . 1 . . Self-Inflicted Damage 159 | . . . . . . . 159 Shots 7 | . . . . . . . 7 Rammed 14 | . . 3 4 1 . . 6 Targets Rammed 22 | . . 3 4 1 . . 14 Kicked 8 | . . . . . . . 8 Crushed . | . . . . . . . . Highest Temperature 290 | . 9 11 132 213 290 78 184 Average Temperature 67 | . 7 11 51 46 96 43 38 Received Heat Transfer 1917 | . 93 480 315 279 276 . 474 Siege Activations . | . . . . . . . . Robots Corrupted . | . . . . . . . . Combat Hostiles . | . . . . . . . . Parts Fried 1 | . . . . . . . 1 Impact Corruptions 1 | . . 1 . . . . . Robots Melted . | . . . . . . . . Combat Hostiles . | . . . . . . . . Parts Melted 3 | . . . . . 1 1 1 Heat Transferred 1369 | . . . . 185 814 74 296 Parts Sabotaged . | . . . . . . . . Parts Stolen . | . . . . . . . . Parts Stripped . | . . . . . . . . Power Chain Reactions . | . . . . . . . . Alert | -11 -10 -9 -8 -7 -7 -7 -6 ------- Run | Yrd Mat Mat Mat Fac Low Low Fac Peak Influence 480 | 65 212 480 337 180 . . 434 Initial 139 | . . 25 139 110 . . 18 Average 120 | 11 85 182 224 98 . . 138 Maximum Alert Level 2 | . 1 2 1 . . . 2 Low Security (%) 76 | 100 82 55 48 100 . . 71 Level 1 21 | . 17 35 51 . . . 27 Level 2 1 | . . 8 . . . . 1 Level 3 . | . . . . . . . . Level 4 . | . . . . . . . . Level 5 . | . . . . . . . . High Security . | . . . . . . . . Max Security . | . . . . . . . . Squads Dispatched 18 | . 1 3 3 3 . . 8 Investigation 1 | . . 1 . . . . . Extermination 3 | . . . . 1 . . 2 Reinforcement 10 | . 1 2 1 2 . . 4 Assault 1 | . . . . . . . 1 Garrison 3 | . . . 2 . . . 1 Intercept . | . . . . . . . . Searches Triggered . | . . . . . . . . Construction Impeded 2 | . . . . . . . 2 Haulers Reinforced . | . . . . . . . . Active Scanning Responses . | . . . . . . . . Cargo Convoy Interrupts . | . . . . . . . . Stealth | -11 -10 -9 -8 -7 -7 -7 -6 --------- Run | Yrd Mat Mat Mat Fac Low Low Fac Distress Signals 11 | . 2 4 3 1 . . 1 Communications Jammed . | . . . . . . . . Distress Signals . | . . . . . . . . Times Spotted 111 | . 15 32 17 12 12 1 22 Peak Tracking Total 5 | . 4 4 5 4 4 1 5 Tactical Retreats 6 | . 2 1 2 . 1 . . Traps | -11 -10 -9 -8 -7 -7 -7 -6 ------- Run | Yrd Mat Mat Mat Fac Low Low Fac Traps Triggered 3 | . . . . 2 . . 1 Indirectly . | . . . . . . . . Trap Hack Attempts . | . . . . . . . . Triggered . | . . . . . . . . Disarmed . | . . . . . . . . Reprogrammed . | . . . . . . . . Reused . | . . . . . . . . Traps Extracted . | . . . . . . . . Installed . | . . . . . . . . Triggered . | . . . . . . . . Machines | -11 -10 -9 -8 -7 -7 -7 -6 ---------- Run | Yrd Mat Mat Mat Fac Low Low Fac Machines Disabled 7 | . . 1 . . . . 6 Max in Single Turn 2 | . . 1 . . . . 2 Garrison Access 1 | . . . . . . . 1 Machines Repaired . | . . . . . . . . Machines Dismantled . | . . . . . . . . Machines Sabotaged . | . . . . . . . . Overloaded Fab Kills . | . . . . . . . . Hacking | -11 -10 -9 -8 -7 -7 -7 -6 --------- Run | Yrd Mat Mat Mat Fac Low Low Fac Machines Accessed 14 | . 3 4 . 3 1 . 3 Terminals 10 | . 3 3 . 1 1 . 2 Fabricators . | . . . . . . . . Repair Stations . | . . . . . . . . Recycling Units 2 | . . . . 2 . . . Scanalyzers 1 | . . 1 . . . . . Garrison Access 1 | . . . . . . . 1 Total Hacks 34 | . 9 14 . 4 1 . 6 Successful 21 | . 5 8 . 2 1 . 5 Failed 13 | . 4 6 . 2 . . 1 Catastrophic 2 | . 1 1 . . . . . Database Lockouts . | . . . . . . . . Manual 4 | . . 3 . . . . 1 Terminals 22 | . 9 7 . 1 1 . 4 Fabricators . | . . . . . . . . Repair Stations . | . . . . . . . . Recycling Units 3 | . . . . 3 . . . Scanalyzers 7 | . . 7 . . . . . Garrison Access 2 | . . . . . . . 2 Terminal Hacks 13 | . 5 2 . 1 1 . 4 Record 4 | . 1 2 . . 1 . . Part Schematic 1 | . . . . . . . 1 Open DSF 1 | . . . . 1 . . . Alert Level 1 | . 1 . . . . . . Unreport Threat 1 | . 1 . . . . . . Dispatch Records 1 | . . . . . . . 1 Maintenance Status 1 | . 1 . . . . . . Hauler Manifests 1 | . . . . . . . 1 Zone Layout 2 | . 1 . . . . . 1 Fabricator Hacks . | . . . . . . . . Repair Station Hacks . | . . . . . . . . Recycling Unit Hacks 1 | . . . . 1 . . . Report Inventory 1 | . . . . 1 . . . Scanalyzer 6 | . . 6 . . . . . Insert Component 3 | . . 3 . . . . . Analyze 3 | . . 3 . . . . . Garrison Access Hacks 1 | . . . . . . . 1 Coupler Status 1 | . . . . . . . 1 Unauthorized Hacks . | . . . . . . . . Terminals . | . . . . . . . . Fabricators . | . . . . . . . . Repair Stations . | . . . . . . . . Recycling Units . | . . . . . . . . Scanalyzers . | . . . . . . . . Garrison Access . | . . . . . . . . Data Cores Recovered 1 | . . . . . . . 1 Used 1 | . . . . . . . 1 Hacking Detections 11 | . 2 4 . 3 . . 2 Full Trace Events 3 | . 1 2 . . . . . Feedback Events . | . . . . . . . . Feedback Blocked . | . . . . . . . . Robot Schematics Acquired . | . . . . . . . . Robots Built . | . . . . . . . . Authchips . | . . . . . . . . Time . | . . . . . . . . Total Robot Build Rating . | . . . . . . . . Part Schematics Acquired 3 | . . 2 . . . . 1 Parts Built . | . . . . . . . . Authchips . | . . . . . . . . Time . | . . . . . . . . Total Part Build Rating . | . . . . . . . . Parts Repaired . | . . . . . . . . Time . | . . . . . . . . Parts Recycled . | . . . . . . . . Recycled Matter . | . . . . . . . . Retrieved Matter . | . . . . . . . . Retrieved Components . | . . . . . . . . Parts Scanalyzed 3 | . . 3 . . . . . Part Schematics Acquired 2 | . . 2 . . . . . Parts Damaged . | . . . . . . . . Bothacking | -11 -10 -9 -8 -7 -7 -7 -6 ------------ Run | Yrd Mat Mat Mat Fac Low Low Fac Used RIF Installer . | . . . . . . . . Robots Hacked 1 | . . . . . . . 1 Non-combat . | . . . . . . . . Combat 1 | . . . . . . . 1 Robot Hacks Applied 1 | . . . . . . . 1 parse_system 1 | . . . . . . . 1 Relay Couplers Released 2 | . . . . . . . 2 Machine Destruction 2 | . . . . . . . 2 Fabnet Peak Effective % . | . . . . . . . . Robots Rewired . | . . . . . . . . Allies Hacked . | . . . . . . . . Hacks Repelled . | . . . . . . . . Allies | -11 -10 -9 -8 -7 -7 -7 -6 -------- Run | Yrd Mat Mat Mat Fac Low Low Fac Total Allies . | . . . . . . . . Largest Group . | . . . . . . . . Highest-Rated Group . | . . . . . . . . Highest-Rated Ally . | . . . . . . . . Total Orders . | . . . . . . . . Ally Attacks . | . . . . . . . . Total Damage . | . . . . . . . . Kills . | . . . . . . . . Allies Corrupted . | . . . . . . . . Allies Melted . | . . . . . . . . Intel | -11 -10 -9 -8 -7 -7 -7 -6 ------- Run | Yrd Mat Mat Mat Fac Low Low Fac Robot Analysis Total . | . . . . . . . . Derelict Logs Recovered 1 | . . . . . 1 . . Drone Launches . | . . . . . . . . Drone Recoveries . | . . . . . . . . Exploration | -11 -10 -9 -8 -7 -7 -7 -6 ------------- Run | Yrd Mat Mat Mat Fac Low Low Fac Turns Passed 7667 | 918 520 827 648 688 3044 162 860 Spaces Moved 2529 | 199 240 356 310 359 694 20 351 Core 410 | 9 . . . . 313 20 68 Treads 2033 | 190 240 356 310 359 381 . 197 Legs 28 | . . . . . . . 28 Wheels 58 | . . . . . . . 58 Hover . | . . . . . . . . Flight . | . . . . . . . . Fastest Speed 50 | 50 160 145 148 156 160 800 50 Average Speed 234 | 157 160 147 151 158 420 820 165 Slowest Speed 850 | 200 160 160 156 240 850 850 800 Overloaded Moves . | . . . . . . . . Propulsion Burnouts . | . . . . . . . . Robots Hopped . | . . . . . . . . Cave-ins Triggered . | . . . . . . . . Exploration Rate (%) 29 | 12 53 39 28 12 76 6 9 Regions Visited 7 Branch Regions 2 Pre-discovered Areas 1 | . . . . . 1 . . Known Exits Taken 2 | . . . . . 1 1 . Unknown Exits Taken 5 | 1 1 1 1 1 . . . Scrap Searched 10 | . . . . . 10 . . Spaces Dug . | . . . . . . . . Terrain Destroyed 123 | . . . . . . . 123 Melee . | . . . . . . . . Projectile 1 | . . . . . . . 1 AOE 122 | . . . . . . . 122 Terrain Rammed . | . . . . . . . . Walls Destroyed . | . . . . . . . . Machines Disabled . | . . . . . . . . Actions | -11 -10 -9 -8 -7 -7 -7 -6 --------- Run | Yrd Mat Mat Mat Fac Low Low Fac Total 3717 | 746 302 527 392 427 754 21 548 Wait 655 | 497 3 39 9 13 2 . 92 Move 2522 | 198 239 355 309 358 693 19 351 Hop . | . . . . . . . . Pick Up 92 | 11 12 23 10 13 8 . 15 Fast Attach . | . . . . . . . . Attach 64 | 6 2 6 7 10 11 . 22 Detach 1 | . 1 . . . . . . Swap 23 | 1 1 12 1 4 2 . 2 Drop 28 | 1 2 17 4 2 . . 2 Fire 307 | 32 42 72 48 26 38 2 47 Melee 3 | . . . . . . . 3 Ram 6 | . . . . . . . 6 Kick 8 | . . . . . . . 8 Crush 8 | . . 3 4 1 . . . Escape Stasis . | . . . . . . . . Rewire . | . . . . . . . . Trap . | . . . . . . . . Miscellaneous . | . . . . . . . . Route ------- -11/Scrapyard -10/Materials (discovered 2 exits: *Mat / [*Min]) -9/Materials -8/Materials -7/Factory (discovered 2 exits: *Fac / *Low) -7/Lower Caves -7/Lower Caves -6/Factory History --------- Turn | Location | Event 18 | -11/Scrapyard | Discovered new exit (range 15) 919 | -11/Scrapyard | Entered Materials 920 | -10/Materials | Build established: Mutant 1250 | -10/Materials | Discovered new exit (range 9) 1428 | -10/Materials | Discovered new exit (range 8) 1439 | -10/Materials | Entered another Materials area 1439 | -9/Materials | Evolved 2 slots: Propulsion x2 1959 | -9/Materials | Destroyed 7 combat bots 2244 | -9/Materials | Discovered new exit (range 15) 2266 | -9/Materials | Entered another Materials area 2266 | -8/Materials | Evolved 2 slots: Power x1, Utility x1 2719 | -8/Materials | Garrison activated, responded to threat 2877 | -8/Materials | Discovered new exit (range 13) 2914 | -8/Materials | Entered Factory 2914 | -7/Factory | Evolved 2 slots: Utility x2 3301 | -7/Factory | Lost 4 parts (2n1u1w) 3583 | -7/Factory | Discovered new exit (range 2) 3584 | -7/Factory | Discovered new exit (range 9) 3602 | -7/Factory | Entered Lower Caves 3625 | -7/Lower Caves | Build established: Scavenger-Mutant 3727 | -7/Lower Caves | Spotted B-75 Beast 3795 | -7/Lower Caves | Destroyed B-75 Beast 3825 | -7/Lower Caves | Lost 8 parts (1p3n4w) 4090 | -7/Lower Caves | Encountered a Warlord checkpoint 4170 | -7/Lower Caves | Lost 3 parts (1p2n) 4867 | -7/Lower Caves | Lost 3 parts (1p1n1u) 4974 | -7/Lower Caves | Build established: Mutant 5266 | -7/Lower Caves | Discovered new exit (range 12) 6038 | -7/Lower Caves | Identified exit to Lower Caves 6646 | -7/Lower Caves | Entered another Lower Caves area 6689 | -7/Lower Caves | Discovered new exit (range 13) 6784 | -7/Lower Caves | Identified exit to Factory 6808 | -7/Lower Caves | Entered Factory 6808 | -6/Factory | Evolved 2 slots: Utility x1, Weapon x1 7352 | -6/Factory | Garrison activated, responded to threat 7459 | -6/Factory | Lost 5 parts (1p1n2u1w) 7588 | -6/Factory | System corruption reached 10% 7589 | -6/Factory | Core integrity fell below 50% 7593 | -6/Factory | Found Prototype Launcher 7594 | -6/Factory | Identified Scatter Rocket Array 7636 | -6/Factory | Lost 14 parts (3p2n3u6w) 7662 | -6/Factory | Core integrity fell below 20% 7668 | -6/Factory | Destroyed by H-66 Slayer with Heavy Assault Rifle Last Messages --------------- M-13 Machinist repairs H-66 Slayer. Kicked Y-54 Guardian. Slug penetrates Wall. Kicked Y-54 Guardian. Kicked Y-54 Guardian out of the way. Penetrated by Slug. K-01 Serf destroyed. Penetrated by Slug. Kicked Y-54 Guardian out of the way. M-13 Machinist destroyed. Extracted 23 matter. Penetrated by Slug. Acquired Med. Matter Pod. System corrupted: Flexi-carbon Leg rejected. Acquired 23 matter. Kicked Y-54 Guardian. Carbon-fiber Leg destroyed. Slammed into Y-54 Guardian. Penetrated by Slug. Med. Matter Pod destroyed. Map ----- +----------------------------------------------------+ | ?????????????????????????????????????????????????? | | ?????????????????????????????????????????????????? | | ?????????????????????????????????????????????????? | | ?????????????????????????????????????????????????? | | ?????????????????????????????????????????????????? | | ?????????????????????????????????????????????????? | | ?????????????????????????????????????????????????? | | ?????????????????????????????????????????????????? | | ???????????????????????? ??????????????????????? | | ???????????????????????? ????????????????????? | | ???????????????????????? #???????????????????? | | ???????????????????????# #???????????????????? | | ???????????????????????+ +???????????????????? | | ???????????????????????# #???????????????????? | | ???????????????????????# #???????????????????? | | ???????????????????????# #???????????????????? | | ???????????????????????# #???????????????????? | | ???????????????????????# #???????????????????? | | ???????????????????????# #???????????????????? | | ???????????????????????# #???????????????????? | | ???????????????????????# #???????????????????? | | ???????????????????????# = #???????????????????? | | ?????????############### %* #???????????????????? | | ?????????# !!! # #???########????????? | | ?????????# !!! #= R ##### ! #????????? | | ?????????# !!! # @ + #????????? | | ?????????# ; Y ##### " " #????????? | | ?????????# """"""""" #h #???# "R" #????????? | | ?????????# # w #???# " " #????????? | | ?????????############### #???# *! #????????? | | ??????????????????????# #??####"###????????? | | ??????????????????????# ##### ########## | | ??????????????????????# # | | ??????????????????????# T o # """""" | | ??????????????????????# # """""" | | ??????????????????????# #### # """""" | | ??????????????????????# #??# ! """""" | | ??????????????????????#########??# % | | ????????????????????????????????# = """""" | | ????????????????????????????????# """""" | | ???????????????????????######### [ # "" " | | ???????????????????????# # ## | | ???????????????????????# ## | | ???????????????????????# """"""" ] | | ???????????????????????# """"""" ##+### | | ???????????????????????# """"""" | | ???????????????????????# """""" | | ???????????????????????# | | ???????????????????????# | | ???????????????????????# [ | +----------------------------------------------------+ Best States ------------- Heat Dissipation 56 Energy Generation 31 Energy Capacity 455 Matter Stores 300 Matter Capacity 550 Sight Range 16 Terrain Scan Density 10 ECM Strength 1 Armor Coverage 150 Evasion (%) 55 Targeting Accuracy 8 Recoil Reduction 4 Offensive Hacking 20 Item Schematics ----------------- Transport Network Coupler | -9/Materials | Scanalyzed Imp. Treads | -9/Materials | Scanalyzed Carbon-fiber Leg | -6/Factory | Hacked Robot Schematics ------------------ None Fabricated ------------ Nothing Alien Tech Used ----------------- None Achievements -------------- More Dakka Please Challenges ------------ None Game ------ Seed TerrabombWavePlatform Manual? 0 Play Time 00:47:58 Cumulative 22.1 hours Start 2024.06.06 @ 17:34:53 End 2024.06.06 @ 19:14:36 Sessions 3 Manual Loads 0 Difficulty Rogue Special Mode None Game No. 36 Rogue 36 Adventurer 0 Explorer 0 Win Type - Total 0 Types 0/0/0/0/0/0/0/0/0 Lore% 9 Gallery% 23 Achievement% 19 Wizard Run 0 Options --------- Layout 1 ASCII 0 Keyboard 0 Movement Mouse Keybinds 0 Fullscreen 1 Font 24/Smallcaps Map View 50x35 Zoom Use 0% Tactical HUD 0 Map Filters NONE Filters NONE Steam 1 RUN: c3bdd09c-9462-46c3-abbb-113fdc7fc96d